[Event "ROU-ch Open 2021"]
[Site "Iasi"]
[Date "2021.04.21"]
[Round "4.11"]
[White "Stoleriu, George"]
[Black "Isfan, Ioan-Marius"]
[Result "1-0"]
[ECO "B01"]
[WhiteElo "2349"]
[BlackElo "2263"]
[Annotator "ChessBase"]
[PlyCount "111"]
[EventDate "2021.04.19"]
[EventType "swiss"]
[EventCountry "ROU"]
[SourceTitle "playchess.com"]
[Source "ChessBase"]
[SourceQuality "1"]
[TimeControl "5400+30"]

1. e4 {[%emt 0:02:04]} d5 {[%emt 0:00:25]} 2. exd5 {[%emt 0:00:12]} Qxd5 {[%emt 0:00:02]} 3. Nc3 {[%emt 0:00:08]} Qa5 {[%emt 0:00:08]} 4. d4 {[%emt 0:01:03]} Nf6 {[%emt 0:00:54]} 5. Bc4 {[%emt 0:01:20]} Bg4 {[%emt 0:02:14]} 6. Nge2 {[%emt 0:09:13]} e6 {[%emt 0:02:08]} 7. h3 {[%emt 0:02:07]} Bh5 {[%emt 0:04:53]} 8. O-O {[%emt 0:08:23]} Bb4 {[%emt 0:20:13]} 9. Qd3 {[%emt 0:08:35]} Bg6 {[%emt 0:10:06]} 10. Qf3 {[%emt 0:14:47]} c6 {[%emt 0:03:34]} 11. Bb3 {[%emt 0:00:36]} Nbd7 {[%emt 0:04:26]} 12. Nf4 {[%emt 0:10:14]} Bf5 {[%emt 0:06:57]} 13. Nce2 {[%emt 0:02:15]} O-O-O {[%emt 0:09:35]} 14. Nd3 {[%emt 0:23:19]} Bd6 {[%emt 0:05:28]} 15. Ng3 {[%emt 0:01:27]} Bxd3 {[%emt 0:07:56]} 16. Qxd3 {[%emt 0:00:19]} g5 {[%emt 0:00:33]} 17. Bd2 {[%emt 0:03:16]} Bb4 {[%emt 0:01:17]} 18. c3 {[%emt 0:00:04]} Bd6 {[%emt 0:00:03]} 19. Ne4 {[%emt 0:00:49]} Nxe4 {[%emt 0:00:35]} 20. Qxe4 {[%emt 0:00:01]} h5 {[%emt 0:00:49]} 21. f4 {[%emt 0:05:39]} Nf6 {[%emt 0:00:19]} 22. Qe2 {[%emt 0:00:49]} g4 {[%emt 0:03:07]} 23. h4 {[%emt 0:02:32]} Qf5 {[%emt 0:00:42]} 24. g3 {[%emt 0:00:45]} Kb8 {[%emt 0:01:58]} 25. Be3 {[%emt 0:00:29]} Nd5 {[%emt 0:00:29]} 26. Bc2 {[%emt 0:00:28]} Qf6 {[%emt 0:00:06]} 27. Be4 {[%emt 0:00:28]} Rhe8 {[%emt 0:00:42]} 28. Rad1 {[%emt 0:00:18]} Qg7 {[%emt 0:02:56]} 29. Kh1 {[%emt 0:01:25]} Bc7 {[%emt 0:02:50]} 30. Bc1 {[%emt 0:00:13]} f6 {[%emt 0:01:20]} 31. Qg2 {[%emt 0:00:26]} Ne7 {[%emt 0:00:36]} 32. Rfe1 {[%emt 0:00:22]} Qf7 {[%emt 0:00:24]} 33. Bc2 {[%emt 0:00:32]} e5 {[%emt 0:01:20]} 34. dxe5 {[%emt 0:00:29]} Rxd1 {[%emt 0:00:10]} 35. Bxd1 {[%emt 0:00:09]} fxe5 {[%emt 0:01:13]} 36. Bb3 {[%emt 0:00:05]} Qg7 {[%emt 0:01:40]} 37. fxe5 {[%emt 0:00:19]} Ng6 {[%emt 0:01:33]} 38. e6 {[%emt 0:00:35]} Ka8 {[%emt 0:00:57]} 39. Bg5 {[%emt 0:00:15]} Ne5 {[%emt 0:00:14]} 40. Rd1 {[%emt 0:01:39]} Nf3 {[%emt 0:00:50]} 41. Be3 {[%emt 0:00:04]} Qf6 {[%emt 0:01:21]} 42. Bd4 {[%emt 0:01:17]} Nxd4 {[%emt 0:00:31]} 43. cxd4 {[%emt 0:00:35]} Qf3 {[%emt 0:02:32]} 44. Qxf3 {[%emt 0:01:06]} gxf3 {[%emt 0:00:01]} 45. Rf1 {[%emt 0:00:22]} Bxg3 {[%emt 0:00:37]} 46. Rxf3 {[%emt 0:00:03]} Bxh4 {[%emt 0:00:08]} 47. e7 {[%emt 0:00:09]} Rb8 {[%emt 0:00:36]} 48. Rf7 {[%emt 0:00:28]} a6 {[%emt 0:00:39]} 49. Be6 {[%emt 0:00:06]} Ka7 {[%emt 0:00:30]} 50. Bd7 {[%emt 0:00:05]} Bxe7 {[%emt 0:00:02]} 51. Rxe7 {[%emt 0:00:05]} Kb6 {[%emt 0:00:17]} 52. Re8 {[%emt 0:00:23]} Rxe8 {[%emt 0:00:54]} 53. Bxe8 {[%emt 0:00:02]} h4 {[%emt 0:00:00]} 54. Kh2 {[%emt 0:00:12]} Ka5 {[%emt 0:00:01]} 55. Kh3 {[%emt 0:00:55]} Kb4 {[%emt 0:00:05]} 56. Bf7 {[%emt 0:00:07]} 1-0

[Event "ROU-ch Open 2021"]
[Site "Iasi"]
[Date "2021.04.21"]
[Round "4.12"]
[White "Coca, Cristi-Iulian"]
[Black "Ciorgovean, Iustin"]
[Result "1/2-1/2"]
[ECO "B50"]
[WhiteElo "2153"]
[BlackElo "2338"]
[Annotator "NA"]
[PlyCount "63"]
[EventDate "2021.04.19"]
[EventType "swiss"]
[EventCountry "ROU"]
[SourceTitle "playchess.com"]
[Source "ChessBase"]
[SourceQuality "1"]
[TimeControl "5400+30"]

1. e4 {[%emt 0:00:33]} c5 {[%emt 0:00:00]} 2. Nf3 {[%emt 0:00:04]} d6 {[%emt 0:00:00]} 3. c3 {[%emt 0:00:05]} Nf6 {[%emt 0:00:00]} 4. Be2 {[%emt 0:00:04]} Bd7 {[%emt 0:00:08]} 5. d3 {[%emt 0:00:22]} g6 {[%emt 0:00:26]} 6. O-O {[%emt 0:00:09]} Bg7 {[%emt 0:00:05]} 7. Re1 {[%emt 0:00:17]} O-O {[%emt 0:00:44]} 8. a4 {[%emt 0:02:08]} e5 {[%emt 0:08:25]} 9. Bf1 {[%emt 0:03:08]} Nc6 {[%emt 0:02:55]} 10. Na3 {[%emt 0:02:52]} h6 {[%emt 0:04:54]} 11. Rb1 {[%emt 0:21:16]} a5 {[%emt 0:14:35]} 12. Nb5 {[%emt 0:11:12]} d5 {[%emt 0:06:20]} 13. exd5 {[%emt 0:12:27]} Nxd5 {[%emt 0:00:06]} 14. Nd2 {[%emt 0:00:32]} Be6 {[%emt 0:06:31]} 15. Qf3 {[%emt 0:06:52]} Qe7 {[%emt 0:05:59]} 16. Nc4 {[%emt 0:11:45]} Rad8 {[%emt 0:08:24]} 17. Qg3 {[%emt 0:17:29]} Kh7 {[%emt 0:07:58]} 18. h4 {[%emt 0:03:57]} f5 {[%emt 0:00:49]} 19. f4 {[%emt 0:00:08]} exf4 {[%emt 0:02:20]} 20. Bxf4 {[%emt 0:00:01]} Nxf4 {[%emt 0:00:08]} 21. Qxf4 {[%emt 0:00:05]} Qf6 {[%emt 0:02:25]} 22. Ncd6 {[%emt 0:01:43]} Rd7 {[%emt 0:01:37]} 23. Re2 {[%emt 0:02:37]} Ne5 {[%emt 0:03:04]} 24. d4 {[%emt 0:00:06]} cxd4 {[%emt 0:00:31]} 25. cxd4 {[%emt 0:00:03]} Ng4 {[%emt 0:00:49]} 26. Rbe1 {[%emt 0:00:56]} Bd5 {[%emt 0:02:50]} 27. Qg3 {[%emt 0:01:45]} h5 {[%emt 0:07:18]} 28. Ne8 {[%emt 0:00:17]} Rxe8 {[%emt 0:00:03]} 29. Rxe8 {[%emt 0:00:03]} f4 {[%emt 0:00:07]} 30. Qh3 {[%emt 0:00:04]} f3 {[%emt 0:02:32]} 31. gxf3 {[%emt 0:00:45]} Bxf3 {[%emt 0:00:21]} 32. Be2 {[%emt 0:00:28]} 1/2-1/2

[Event "ROU-ch Open 2021"]
[Site "Iasi"]
[Date "2021.04.21"]
[Round "4.13"]
[White "Albu, George"]
[Black "Ognean, Mihnea-Ionut"]
[Result "1/2-1/2"]
[ECO "E27"]
[WhiteElo "2050"]
[BlackElo "2298"]
[Annotator "ChessBase"]
[PlyCount "145"]
[EventDate "2021.04.19"]
[EventType "swiss"]
[EventCountry "ROU"]
[SourceTitle "playchess.com"]
[Source "ChessBase"]
[SourceQuality "1"]
[TimeControl "5400+30"]

1. d4 {[%emt 0:13:42]} Nf6 {[%emt 0:00:00]} 2. c4 {[%emt 0:00:05]} e6 {[%emt 0:00:02]} 3. Nc3 {[%emt 0:00:05]} Bb4 {[%emt 0:00:29]} 4. f3 {[%emt 0:00:05]} O-O {[%emt 0:00:57]} 5. a3 {[%emt 0:00:53]} Bxc3+ {[%emt 0:00:22]} 6. bxc3 {[%emt 0:00:05]} Nh5 {[%emt 0:00:11]} 7. Nh3 {[%emt 0:00:09]} f5 {[%emt 0:00:05]} 8. Nf2 {[%emt 0:15:44]} Nf6 {[%emt 0:08:29]} 9. e4 {[%emt 0:08:54]} fxe4 {[%emt 0:11:38]} 10. fxe4 {[%emt 0:00:08]} d6 {[%emt 0:00:04]} 11. Bd3 {[%emt 0:01:48]} e5 {[%emt 0:00:09]} 12. O-O {[%emt 0:00:06]} c5 {[%emt 0:03:47]} 13. d5 {[%emt 0:03:08]} Qe8 {[%emt 0:04:03]} 14. Nh1 {[%emt 0:08:02]} Na6 {[%emt 0:21:22]} 15. Ng3 {[%emt 0:01:19]} Nc7 {[%emt 0:00:07]} 16. a4 {[%emt 0:03:40]} Rb8 {[%emt 0:06:28]} 17. Ra2 {[%emt 0:01:19]} Bg4 {[%emt 0:02:49]} 18. Be2 {[%emt 0:01:31]} Bd7 {[%emt 0:01:53]} 19. Bd3 {[%emt 0:04:05]} b6 {[%emt 0:14:33]} 20. Nf5 {[%emt 0:03:26]} Bxf5 {[%emt 0:00:07]} 21. Rxf5 {[%emt 0:00:04]} g6 {[%emt 0:01:28]} 22. Rf1 {[%emt 0:02:55]} Nh5 {[%emt 0:00:37]} 23. Bh6 {[%emt 0:12:12]} Ng7 {[%emt 0:01:37]} 24. Rxf8+ {[%emt 0:05:13]} Qxf8 {[%emt 0:00:03]} 25. Qg4 {[%emt 0:00:06]} Qc8 {[%emt 0:02:26]} 26. Qh4 {[%emt 0:03:47]} Qd8 {[%emt 0:02:55]} 27. Qg4 {[%emt 0:00:21]} Qc8 {[%emt 0:01:32]} 28. Qh4 {[%emt 0:00:10]} Qd8 {[%emt 0:01:49]} 29. Bg5 {[%emt 0:01:01]} Qd7 {[%emt 0:00:17]} 30. Be2 {[%emt 0:00:11]} Rf8 {[%emt 0:04:06]} 31. Bg4 {[%emt 0:00:10]} Qf7 {[%emt 0:00:32]} 32. Bf3 {[%emt 0:00:06]} Qd7 {[%emt 0:00:24]} 33. h3 {[%emt 0:00:56]} h5 {[%emt 0:04:22]} 34. Kh2 {[%emt 0:00:56]} Kh7 {[%emt 0:00:13]} 35. Rf2 {[%emt 0:01:40]} Rf7 {[%emt 0:03:14]} 36. Bd1 {[%emt 0:02:02]} Nce8 {[%emt 0:01:12]} 37. Bf3 {[%emt 0:00:36]} Kg8 {[%emt 0:00:15]} 38. Ra2 {[%emt 0:01:48]} Qb7 {[%emt 0:00:42]} 39. Be2 {[%emt 0:00:50]} Rf8 {[%emt 0:01:33]} 40. a5 {[%emt 0:01:16]} bxa5 {[%emt 0:00:10]} 41. Rxa5 {[%emt 0:00:09]} Qb2 {[%emt 0:00:26]} 42. Qe1 {[%emt 0:00:08]} Rf7 {[%emt 0:00:46]} 43. Rb5 {[%emt 0:02:05]} Qc2 {[%emt 0:00:05]} 44. Bd1 {[%emt 0:02:06]} Qd3 {[%emt 0:00:45]} 45. Qe2 {[%emt 0:00:30]} Qxc3 {[%emt 0:00:27]} 46. Rb3 {[%emt 0:01:18]} Qd4 {[%emt 0:00:51]} 47. Be3 {[%emt 0:00:17]} Qa1 {[%emt 0:00:32]} 48. Qd2 {[%emt 0:01:33]} Rf1 {[%emt 0:01:12]} 49. Be2 {[%emt 0:00:55]} Rh1+ {[%emt 0:00:13]} 50. Kg3 {[%emt 0:00:04]} Nf6 {[%emt 0:00:34]} 51. Bf3 {[%emt 0:00:27]} Rb1 {[%emt 0:00:43]} 52. Rc3 {[%emt 0:00:38]} Rb4 {[%emt 0:01:03]} 53. Bg5 {[%emt 0:00:27]} Nge8 {[%emt 0:00:07]} 54. Qc1 {[%emt 0:01:04]} Qxc1 {[%emt 0:01:02]} 55. Rxc1 {[%emt 0:00:02]} Nd7 {[%emt 0:00:10]} 56. Ra1 {[%emt 0:00:35]} Rb7 {[%emt 0:00:10]} 57. Bd8 {[%emt 0:00:46]} Kf7 {[%emt 0:00:28]} 58. Ra6 {[%emt 0:00:12]} Nb8 {[%emt 0:00:11]} 59. Ra3 {[%emt 0:00:27]} a6 {[%emt 0:00:19]} 60. Kh4 {[%emt 0:00:31]} Kg7 {[%emt 0:01:25]} 61. g4 {[%emt 0:00:37]} hxg4 {[%emt 0:00:28]} 62. Bxg4 {[%emt 0:00:34]} Nf6 {[%emt 0:00:06]} 63. Bc8 {[%emt 0:00:31]} Rb4 {[%emt 0:00:18]} 64. Bxf6+ {[%emt 0:00:29]} Kxf6 {[%emt 0:00:07]} 65. Bxa6 {[%emt 0:00:03]} Nxa6 {[%emt 0:02:26]} 66. Rxa6 {[%emt 0:00:04]} Rxc4 {[%emt 0:00:03]} 67. Rxd6+ {[%emt 0:00:05]} Kf7 {[%emt 0:00:04]} 68. Kg5 {[%emt 0:00:16]} Rxe4 {[%emt 0:00:16]} 69. Rd7+ {[%emt 0:00:44]} Ke8 {[%emt 0:00:04]} 70. Rc7 {[%emt 0:00:05]} Rd4 {[%emt 0:00:57]} 71. Kxg6 {[%emt 0:01:17]} Rxd5 {[%emt 0:00:29]} 72. Kf5 {[%emt 0:01:33]} e4+ 73. Kxe4 1/2-1/2

[Event "ROU-ch Open 2021"]
[Site "Iasi"]
[Date "2021.04.21"]
[Round "4.14"]
[White "Antonica, Dragos-Andrei"]
[Black "Bonciu, David"]
[Result "1-0"]
[ECO "A36"]
[WhiteElo "2291"]
[BlackElo "2016"]
[Annotator "NA"]
[PlyCount "63"]
[EventDate "2021.04.19"]
[EventType "swiss"]
[EventCountry "ROU"]
[SourceTitle "playchess.com"]
[Source "ChessBase"]
[SourceQuality "1"]
[TimeControl "5400+30"]

1. c4 {[%emt 0:00:00]} g6 {[%emt 0:00:00]} 2. Nc3 {[%emt 0:00:00]} c5 {[%emt 0:00:00]} 3. g3 {[%emt 0:00:00]} Bg7 {[%emt 0:00:01]} 4. Bg2 {[%emt 0:00:05]} Nc6 {[%emt 0:00:08]} 5. e4 {[%emt 0:00:53]} d6 {[%emt 0:00:53]} 6. Nge2 {[%emt 0:00:17]} e6 {[%emt 0:01:04]} 7. O-O {[%emt 0:00:23]} Nge7 {[%emt 0:00:05]} 8. d3 {[%emt 0:00:18]} O-O {[%emt 0:00:24]} 9. Rb1 {[%emt 0:00:11]} b6 {[%emt 0:03:56]} 10. a3 {[%emt 0:01:06]} Bb7 {[%emt 0:03:17]} 11. b4 {[%emt 0:00:38]} Nd4 {[%emt 0:02:32]} 12. Nxd4 {[%emt 0:18:31]} cxd4 {[%emt 0:16:38]} 13. Ne2 {[%emt 0:01:53]} Qd7 {[%emt 0:02:57]} 14. Nf4 {[%emt 0:13:09]} e5 {[%emt 0:01:55]} 15. Nd5 {[%emt 0:01:12]} Nxd5 {[%emt 0:00:33]} 16. cxd5 {[%emt 0:22:37]} f5 {[%emt 0:19:30]} 17. f4 {[%emt 0:09:12]} fxe4 {[%emt 0:03:26]} 18. Bxe4 {[%emt 0:03:55]} Rac8 {[%emt 0:11:16]} 19. Bd2 {[%emt 0:05:36]} Kh8 {[%emt 0:04:41]} 20. Rc1 {[%emt 0:07:21]} Rxc1 {[%emt 0:12:14]} 21. Qxc1 {[%emt 0:01:05]} Qf7 {[%emt 0:02:06]} 22. f5 {[%emt 0:04:15]} gxf5 {[%emt 0:12:31]} 23. Rxf5 {[%emt 0:00:35]} Qe7 {[%emt 0:00:51]} 24. Bg5 {[%emt 0:05:25]} Qd7 {[%emt 0:00:29]} 25. Rxf8+ {[%emt 0:00:52]} Bxf8 {[%emt 0:00:02]} 26. Bf6+ {[%emt 0:00:19]} Bg7 {[%emt 0:00:12]} 27. Qh6 {[%emt 0:00:34]} Kg8 {[%emt 0:00:41]} 28. Bxh7+ {[%emt 0:00:52]} Kf8 {[%emt 0:00:10]} 29. Bxg7+ {[%emt 0:00:07]} Qxg7 {[%emt 0:00:19]} 30. Qxd6+ {[%emt 0:00:05]} Qe7 {[%emt 0:00:28]} 31. Qb8+ {[%emt 0:00:28]} Kg7 {[%emt 0:00:12]} 32. Qg8+ {[%emt 0:00:04]} 1-0

[Event "ROU-ch Open 2021"]
[Site "Iasi"]
[Date "2021.04.21"]
[Round "4.15"]
[White "Antal, Hunor-Zoltan"]
[Black "Gheorghiu, Calin"]
[Result "0-1"]
[ECO "D77"]
[WhiteElo "2023"]
[BlackElo "2283"]
[Annotator "NA"]
[PlyCount "70"]
[EventDate "2021.04.19"]
[EventType "swiss"]
[EventCountry "ROU"]
[SourceTitle "playchess.com"]
[Source "ChessBase"]
[SourceQuality "1"]
[TimeControl "5400+30"]

1. d4 {[%emt 0:00:00]} Nf6 {[%emt 0:00:00]} 2. Nf3 {[%emt 0:00:00]} d5 {[%emt 0:01:00]} 3. c4 {[%emt 0:00:00]} g6 {[%emt 0:00:17]} 4. g3 {[%emt 0:05:30]} Bg7 {[%emt 0:00:10]} 5. Bg2 {[%emt 0:00:23]} O-O {[%emt 0:00:12]} 6. O-O {[%emt 0:04:01]} Nc6 {[%emt 0:00:07]} 7. Ne5 {[%emt 0:06:56]} dxc4 {[%emt 0:00:11]} 8. Nxc6 {[%emt 0:00:22]} bxc6 {[%emt 0:00:03]} 9. Nc3 {[%emt 0:12:36]} Nd5 {[%emt 0:04:50]} 10. e4 {[%emt 0:08:55]} Nb4 {[%emt 0:01:23]} 11. e5 {[%emt 0:21:42]} Nd3 {[%emt 0:16:38]} 12. Be3 {[%emt 0:01:31]} Nxb2 {[%emt 0:03:58]} 13. Qc2 {[%emt 0:00:27]} Nd3 {[%emt 0:00:31]} 14. Ne4 {[%emt 0:01:07]} Be6 {[%emt 0:00:44]} 15. Nd2 {[%emt 0:01:04]} c5 {[%emt 0:08:06]} 16. Nxc4 {[%emt 0:08:18]} cxd4 {[%emt 0:03:33]} 17. Bxa8 {[%emt 0:04:09]} Bxc4 {[%emt 0:03:50]} 18. Bg2 {[%emt 0:04:39]} dxe3 {[%emt 0:04:16]} 19. Qxc4 {[%emt 0:00:18]} exf2+ {[%emt 0:01:13]} 20. Kh1 {[%emt 0:00:22]} Nxe5 {[%emt 0:00:11]} 21. Qe2 {[%emt 0:01:08]} c5 {[%emt 0:01:20]} 22. Rad1 {[%emt 0:00:44]} Qb6 {[%emt 0:01:01]} 23. Rxf2 {[%emt 0:02:24]} c4 {[%emt 0:00:30]} 24. Rf4 {[%emt 0:04:04]} c3 {[%emt 0:00:45]} 25. Rc1 {[%emt 0:02:13]} Qc5 {[%emt 0:00:54]} 26. Rc2 {[%emt 0:01:15]} Rd8 {[%emt 0:01:43]} 27. h3 {[%emt 0:01:05]} Bh6 {[%emt 0:10:57]} 28. Re4 {[%emt 0:02:45]} Rd2 {[%emt 0:01:27]} 29. Rxd2 {[%emt 0:00:59]} cxd2 {[%emt 0:00:16]} 30. Kh2 {[%emt 0:00:15]} Qd6 {[%emt 0:01:56]} 31. Qd1 {[%emt 0:01:22]} Nd3 {[%emt 0:00:12]} 32. Qa4 {[%emt 0:01:37]} Nf2 {[%emt 0:00:50]} 33. Qe8+ {[%emt 0:00:33]} Bf8 {[%emt 0:00:21]} 34. Rf4 {[%emt 0:01:20]} Qxf4 {[%emt 0:00:03]} 35. gxf4 {[%emt 0:00:13]} d1=Q {[%emt 0:00:02]} 0-1

[Event "ROU-ch Open 2021"]
[Site "Iasi"]
[Date "2021.04.21"]
[Round "4.16"]
[White "Tocan, Cristian"]
[Black "Magold, Victor"]
[Result "0-1"]
[ECO "B24"]
[WhiteElo "2236"]
[BlackElo "2014"]
[Annotator "NA"]
[PlyCount "86"]
[EventDate "2021.04.19"]
[EventType "swiss"]
[EventCountry "ROU"]
[SourceTitle "playchess.com"]
[Source "ChessBase"]
[SourceQuality "1"]
[TimeControl "5400+30"]

1. e4 {[%emt 0:00:00]} c5 {[%emt 0:00:00]} 2. Nc3 {[%emt 0:00:00]} e6 {[%emt 0:00:00]} 3. g3 {[%emt 0:00:12]} Nc6 {[%emt 0:00:09]} 4. Bg2 {[%emt 0:00:14]} Nf6 {[%emt 0:00:26]} 5. d3 {[%emt 0:00:19]} d5 {[%emt 0:00:32]} 6. exd5 {[%emt 0:02:23]} exd5 {[%emt 0:00:39]} 7. Bg5 {[%emt 0:01:04]} Be6 {[%emt 0:04:34]} 8. Nge2 {[%emt 0:01:06]} d4 {[%emt 0:08:03]} 9. Bxf6 {[%emt 0:01:31]} Qxf6 {[%emt 0:05:46]} 10. Ne4 {[%emt 0:01:07]} Qe7 {[%emt 0:07:04]} 11. O-O {[%emt 0:01:48]} O-O-O {[%emt 0:08:54]} 12. Nf4 {[%emt 0:03:13]} Bf5 {[%emt 0:02:16]} 13. Re1 {[%emt 0:01:53]} Qd7 {[%emt 0:01:21]} 14. f3 {[%emt 0:10:25]} h5 {[%emt 0:00:36]} 15. a3 {[%emt 0:03:28]} Be7 {[%emt 0:11:21]} 16. Nf2 {[%emt 0:03:19]} g5 {[%emt 0:10:45]} 17. Nxh5 {[%emt 0:01:11]} Rxh5 {[%emt 0:00:14]} 18. g4 {[%emt 0:00:08]} Rh4 {[%emt 0:02:06]} 19. gxf5 {[%emt 0:00:40]} Rdh8 {[%emt 0:00:36]} 20. Ng4 {[%emt 0:03:18]} Qxf5 {[%emt 0:06:51]} 21. Qe2 {[%emt 0:04:27]} Bd6 {[%emt 0:00:59]} 22. Qe4 {[%emt 0:01:46]} Bxh2+ {[%emt 0:02:00]} 23. Nxh2 {[%emt 0:12:38]} Rxe4 {[%emt 0:02:38]} 24. dxe4 {[%emt 0:00:22]} Qf4 {[%emt 0:00:59]} 25. Ng4 {[%emt 0:01:09]} Rh4 {[%emt 0:03:25]} 26. Rad1 {[%emt 0:04:40]} f6 {[%emt 0:01:52]} 27. b4 {[%emt 0:01:00]} Ne5 {[%emt 0:04:27]} 28. Nxe5 {[%emt 0:00:53]} fxe5 {[%emt 0:00:04]} 29. bxc5 {[%emt 0:00:27]} g4 {[%emt 0:00:20]} 30. fxg4 {[%emt 0:02:09]} Qh2+ {[%emt 0:00:15]} 31. Kf1 {[%emt 0:01:38]} Rxg4 {[%emt 0:00:28]} 32. Re2 {[%emt 0:00:55]} Kc7 {[%emt 0:03:04]} 33. Rdd2 {[%emt 0:07:52]} Kc6 {[%emt 0:01:09]} 34. Rd3 {[%emt 0:02:25]} Kxc5 {[%emt 0:02:58]} 35. Rf3 {[%emt 0:02:05]} Rf4 {[%emt 0:01:14]} 36. Rff2 {[%emt 0:02:48]} Qg3 {[%emt 0:01:49]} 37. Kg1 {[%emt 0:01:17]} Rxf2 {[%emt 0:00:18]} 38. Rxf2 {[%emt 0:00:06]} Qxa3 {[%emt 0:00:03]} 39. Bf1 {[%emt 0:01:04]} Qg3+ {[%emt 0:00:09]} 40. Bg2 {[%emt 0:00:09]} a5 {[%emt 0:00:06]} 41. Kf1 {[%emt 0:00:25]} a4 {[%emt 0:00:09]} 42. Rf3 {[%emt 0:00:29]} Qxf3+ {[%emt 0:00:10]} 43. Bxf3 {[%emt 0:00:05]} a3 {[%emt 0:00:02]} 0-1

[Event "ROU-ch Open 2021"]
[Site "Iasi"]
[Date "2021.04.21"]
[Round "4.17"]
[White "Ignat, Matei-Marius"]
[Black "Daianu, Cristian-Clement"]
[Result "1-0"]
[ECO "B40"]
[WhiteElo "1978"]
[BlackElo "2234"]
[Annotator "ChessBase"]
[PlyCount "109"]
[EventDate "2021.04.19"]
[EventType "swiss"]
[EventCountry "ROU"]
[SourceTitle "playchess.com"]
[Source "ChessBase"]
[SourceQuality "1"]
[TimeControl "5400+30"]

1. e4 {[%emt 0:00:00]} c5 {[%emt 0:06:44]} 2. Nf3 {[%emt 0:00:00]} e6 {[%emt 0:01:22]} 3. g3 {[%emt 0:00:46]} Nc6 {[%emt 0:04:40]} 4. Bg2 {[%emt 0:00:29]} a6 {[%emt 0:01:45]} 5. O-O {[%emt 0:03:09]} b5 {[%emt 0:01:13]} 6. d4 {[%emt 0:09:47]} cxd4 {[%emt 0:04:16]} 7. Nxd4 {[%emt 0:00:09]} Bb7 {[%emt 0:00:33]} 8. Re1 {[%emt 0:12:35]} Rc8 {[%emt 0:06:56]} 9. Nc3 {[%emt 0:10:20]} d6 {[%emt 0:12:04]} 10. a4 {[%emt 0:12:36]} b4 {[%emt 0:11:12]} 11. Nxc6 {[%emt 0:07:56]} Bxc6 {[%emt 0:02:38]} 12. Nd5 {[%emt 0:00:04]} a5 {[%emt 0:00:10]} 13. Be3 {[%emt 0:07:41]} Bb7 {[%emt 0:05:55]} 14. Bb6 {[%emt 0:03:46]} Qd7 {[%emt 0:00:17]} 15. Ne3 {[%emt 0:06:40]} Nf6 {[%emt 0:02:16]} 16. Bxa5 {[%emt 0:06:20]} Bxe4 {[%emt 0:00:16]} 17. Bxb4 {[%emt 0:05:24]} Bxg2 {[%emt 0:01:01]} 18. Nxg2 {[%emt 0:00:04]} Qb7 {[%emt 0:02:06]} 19. Ba3 {[%emt 0:03:55]} Be7 {[%emt 0:02:23]} 20. Qd3 {[%emt 0:02:11]} O-O {[%emt 0:00:23]} 21. Rad1 {[%emt 0:02:57]} Rfd8 {[%emt 0:00:34]} 22. c4 {[%emt 0:01:03]} d5 {[%emt 0:02:00]} 23. Bxe7 {[%emt 0:00:23]} Qxe7 {[%emt 0:00:02]} 24. cxd5 {[%emt 0:00:23]} Nxd5 {[%emt 0:00:03]} 25. Qe4 {[%emt 0:01:54]} Qf6 {[%emt 0:09:41]} 26. b4 {[%emt 0:01:32]} Rf8 {[%emt 0:00:05]} 27. Qd4 {[%emt 0:00:19]} Qg6 {[%emt 0:00:40]} 28. Nf4 {[%emt 0:00:33]} Nxf4 {[%emt 0:00:17]} 29. Qxf4 {[%emt 0:00:01]} Qc2 {[%emt 0:00:12]} 30. b5 {[%emt 0:00:55]} Rc4 {[%emt 0:06:35]} 31. Rd4 {[%emt 0:00:12]} Rc5 {[%emt 0:00:03]} 32. Qe4 {[%emt 0:00:50]} Qa2 {[%emt 0:02:07]} 33. Qb1 {[%emt 0:00:39]} Rc2 {[%emt 0:00:25]} 34. Qxa2 {[%emt 0:00:28]} Rxa2 {[%emt 0:00:02]} 35. Rb1 {[%emt 0:00:50]} Rb8 {[%emt 0:00:37]} 36. b6 {[%emt 0:00:12]} Kf8 {[%emt 0:00:08]} 37. b7 {[%emt 0:00:51]} Ke7 {[%emt 0:00:07]} 38. Rb5 {[%emt 0:00:20]} f6 {[%emt 0:00:32]} 39. a5 {[%emt 0:00:40]} e5 {[%emt 0:00:10]} 40. Rdd5 {[%emt 0:00:20]} Ke6 {[%emt 0:00:16]} 41. Rd1 {[%emt 0:00:27]} Ke7 {[%emt 0:00:30]} 42. Kf1 {[%emt 0:00:35]} h5 {[%emt 0:00:12]} 43. h4 {[%emt 0:00:19]} g6 {[%emt 0:00:10]} 44. Ke1 {[%emt 0:00:13]} e4 {[%emt 0:00:24]} 45. Rd2 {[%emt 0:00:22]} Ra3 {[%emt 0:00:10]} 46. Ke2 {[%emt 0:00:18]} f5 {[%emt 0:00:06]} 47. Rd4 {[%emt 0:00:56]} Ra2+ {[%emt 0:00:32]} 48. Ke3 {[%emt 0:00:14]} Ra3+ {[%emt 0:00:03]} 49. Ke2 {[%emt 0:00:47]} Ra2+ {[%emt 0:00:10]} 50. Rd2 {[%emt 0:00:07]} Ra3 {[%emt 0:00:05]} 51. Rdb2 {[%emt 0:01:14]} Kd7 {[%emt 0:00:18]} 52. Rb6 {[%emt 0:00:36]} Rxa5 {[%emt 0:00:39]} 53. Rxg6 {[%emt 0:00:03]} Kc7 {[%emt 0:02:59]} 54. Rh6 {[%emt 0:00:19]} Rf8 {[%emt 0:01:23]} 55. b8=Q+ {[%emt 0:00:39]} 1-0

[Event "ROU-ch Open 2021"]
[Site "Iasi"]
[Date "2021.04.21"]
[Round "4.18"]
[White "Botea, David-Alexandru"]
[Black "Martian, Dragos-Daniel"]
[Result "0-1"]
[ECO "A46"]
[WhiteElo "2015"]
[BlackElo "2198"]
[Annotator "NA"]
[PlyCount "76"]
[EventDate "2021.04.19"]
[EventType "swiss"]
[EventCountry "ROU"]
[SourceTitle "playchess.com"]
[Source "ChessBase"]
[SourceQuality "1"]
[TimeControl "5400+30"]

1. d4 {[%emt 0:00:00]} Nf6 {[%emt 0:11:06]} 2. Nf3 {[%emt 0:00:00]} e6 {[%emt 0:00:01]} 3. g3 {[%emt 0:00:02]} b5 {[%emt 0:00:02]} 4. Bg2 {[%emt 0:00:27]} Bb7 {[%emt 0:00:01]} 5. O-O {[%emt 0:00:42]} c5 {[%emt 0:00:04]} 6. b3 {[%emt 0:06:22]} Be7 {[%emt 0:01:11]} 7. Bb2 {[%emt 0:00:40]} Na6 {[%emt 0:01:13]} 8. a4 {[%emt 0:01:53]} b4 {[%emt 0:00:28]} 9. Nbd2 {[%emt 0:01:35]} O-O {[%emt 0:01:38]} 10. Ne5 {[%emt 0:01:57]} d5 {[%emt 0:05:32]} 11. e3 {[%emt 0:14:04]} Rc8 {[%emt 0:02:16]} 12. f4 {[%emt 0:02:57]} Rc7 {[%emt 0:04:24]} 13. g4 {[%emt 0:08:21]} Ne4 {[%emt 0:05:45]} 14. Nxe4 {[%emt 0:05:35]} dxe4 {[%emt 0:00:04]} 15. f5 {[%emt 0:01:57]} Bg5 {[%emt 0:06:41]} 16. Qe2 {[%emt 0:09:19]} cxd4 {[%emt 0:02:48]} 17. exd4 {[%emt 0:01:13]} exf5 {[%emt 0:07:00]} 18. Rxf5 {[%emt 0:13:40]} g6 {[%emt 0:01:39]} 19. Rff1 {[%emt 0:03:22]} Qd5 {[%emt 0:05:28]} 20. Rae1 {[%emt 0:04:03]} f6 {[%emt 0:04:48]} 21. Nc4 {[%emt 0:01:16]} f5 {[%emt 0:00:37]} 22. gxf5 {[%emt 0:00:41]} gxf5 {[%emt 0:00:18]} 23. Qh5 {[%emt 0:05:33]} Rg7 {[%emt 0:01:57]} 24. h4 {[%emt 0:00:20]} Bxh4 {[%emt 0:10:29]} 25. Ne3 {[%emt 0:02:22]} Qd8 {[%emt 0:02:33]} 26. d5 {[%emt 0:04:18]} Qg5 {[%emt 0:01:02]} 27. Qd1 {[%emt 0:02:44]} Bxe1 {[%emt 0:01:39]} 28. Rxe1 {[%emt 0:01:40]} f4 {[%emt 0:01:23]} 29. Bxg7 {[%emt 0:02:13]} Qxg7 {[%emt 0:00:46]} 30. Qg4 {[%emt 0:00:31]} fxe3 {[%emt 0:00:33]} 31. Qxg7+ {[%emt 0:00:04]} Kxg7 {[%emt 0:00:05]} 32. Bxe4 {[%emt 0:00:21]} Nc7 {[%emt 0:04:12]} 33. Rxe3 {[%emt 0:02:08]} Bxd5 {[%emt 0:00:35]} 34. Rg3+ {[%emt 0:01:00]} Kh8 {[%emt 0:00:25]} 35. Bd3 {[%emt 0:00:24]} Rg8 {[%emt 0:00:37]} 36. Rxg8+ {[%emt 0:00:01]} Kxg8 {[%emt 0:00:11]} 37. Kf2 {[%emt 0:00:03]} Kg7 {[%emt 0:00:54]} 38. Ke3 {[%emt 0:00:04]} Ne6 {[%emt 0:00:08]} 0-1